bitfinex/quotes_BTCUSD_20251015
["timestamp","ask_amount","ask_price","bid_price","bid_amount"]
[1760532058351,2.684303,111860.0,111840.0,0.10155697]
[1760532058552,2.684303,111870.0,111840.0,0.10155697]
[1760532058778,2.684303,111860.0,111840.0,0.10155697]
[1760532058986,0.01,111870.0,111840.0,0.10155697]
[1760532058987,2.68488495,111870.0,111840.0,0.10155697]
[1760532059188,2.684303,111860.0,111840.0,0.10155697]
[1760532059808,2.694303,111860.0,111840.0,0.001]
[1760532060020,2.684303,111850.0,111840.0,0.001]
[1760532060226,0.01,111850.0,111830.0,0.03618228]
[1760532060426,2.684303,111840.0,111820.0,0.0717521]
[1760532060637,2.684303,111860.0,111820.0,0.0717521]
[1760532060836,2.684303,111850.0,111820.0,0.11325608]
[1760532061044,0.01,111850.0,111830.0,0.00018038]
[1760532061450,0.01,111850.0,111830.0,0.00118038]
[1760532061658,0.51973013,111870.0,111830.0,0.03736266]
[1760532061868,0.51973013,111870.0,111830.0,0.03736265]
[1760532061869,2.684303,111860.0,111830.0,0.03736265]
[1760532062065,2.69262305,111860.0,111830.0,0.11894831]
[1760532062333,0.00832005,111860.0,111830.0,0.11942435]
[1760532062762,0.348902,111870.0,111840.0,0.03618228]
[1760532062975,0.348902,111870.0,111850.0,0.0007535]
[1760532063189,0.348902,111870.0,111850.0,0.00111046]
[1760532063848,0.348902,111870.0,111840.0,0.03618228]
[1760532063849,2.684303,111860.0,111840.0,0.03618228]
[1760532064055,2.684303,111850.0,111840.0,0.03618228]
[1760532064285,2.69262305,111850.0,111820.0,0.22649608]
[1760532064487,0.00832005,111850.0,111830.0,0.03618228]
[1760532064904,2.684303,111860.0,111830.0,0.03618228]
[1760532065189,0.0275145,111860.0,111830.0,0.00038153]
[1760532065394,2.684303,111850.0,111820.0,0.00292011]
[1760532065611,2.7218175,111850.0,111820.0,0.00292011]
[1760532065819,2.684303,111840.0,111820.0,0.00292011]
[1760532066034,2.684303,111840.0,111820.0,0.39802011]
[1760532066240,2.684303,111860.0,111820.0,0.3961]
[1760532066451,2.684303,111850.0,111820.0,0.484981]
[1760532066677,2.73183987,111850.0,111820.0,0.484981]
[1760532066880,2.684303,111840.0,111820.0,0.483981]
[1760532067082,2.450641,111840.0,111820.0,0.484981]
[1760532067287,2.450641,111860.0,111820.0,0.484981]
[1760532067493,2.49485287,111860.0,111820.0,0.483981]
[1760532067734,2.450641,111850.0,111820.0,0.483981]
[1760532067913,0.00833526,111850.0,111820.0,0.483981]
[1760532068148,2.450641,111860.0,111820.0,0.483981]
[1760532068372,2.450641,111850.0,111820.0,0.236081]
[1760532068575,0.00833526,111850.0,111830.0,0.00046658]
[1760532069175,0.52753899,111860.0,111830.0,0.00046658]
[1760532069382,2.450641,111850.0,111830.0,0.00046658]
[1760532069592,0.00833526,111850.0,111830.0,0.00289163]
[1760532069790,0.34891721,111870.0,111830.0,0.00289163]
[1760532069997,2.450641,111860.0,111830.0,0.15009163]
[1760532070209,2.450641,111850.0,111830.0,0.17398889]
[1760532070412,0.00833526,111850.0,111830.0,0.17398889]
[1760532070617,0.34058195,111870.0,111830.0,0.17398889]
[1760532070618,2.450641,111860.0,111830.0,0.17398889]
[1760532070836,2.450641,111850.0,111830.0,0.17398889]
[1760532071043,0.00833311,111850.0,111830.0,0.17398889]
[1760532071488,0.52753347,111860.0,111830.0,0.17398889]
[1760532071667,2.450641,111850.0,111830.0,0.17398889]
[1760532071873,2.45897411,111850.0,111830.0,0.17398889]
[1760532072175,0.00833311,111850.0,111830.0,0.17398889]
[1760532072380,0.34891506,111870.0,111830.0,0.17398889]
[1760532072585,2.450641,111860.0,111830.0,0.17398889]
[1760532072836,2.450641,111850.0,111830.0,0.17398889]
[1760532073051,2.45897411,111850.0,111830.0,0.17398889]
[1760532073248,0.00833311,111850.0,111830.0,0.17398889]
[1760532073693,0.02753004,111860.0,111830.0,0.17398889]
[1760532073907,2.450641,111850.0,111830.0,0.17398889]
[1760532074123,0.00833311,111850.0,111830.0,0.17398889]
[1760532074759,2.45897411,111850.0,111830.0,0.17398889]
[1760532074980,0.00833311,111850.0,111830.0,0.17398889]
[1760532075190,2.450641,111860.0,111830.0,0.17398889]
[1760532075394,2.48649869,111860.0,111830.0,0.17398889]
[1760532075593,2.450641,111850.0,111830.0,0.17398889]
[1760532076008,2.450641,111860.0,111830.0,0.17398889]
[1760532076212,2.450641,111850.0,111830.0,0.17398889]
[1760532076624,0.01,111850.0,111830.0,0.17398889]
[1760532081082,2.450641,111860.0,111840.0,0.03618228]
[1760532081217,0.33706962,111870.0,111850.0,0.00089678]
[1760532081421,0.35373598,111870.0,111850.0,0.00089678]
[1760532081847,0.36373598,111870.0,111850.0,0.00089678]
[1760532082302,0.36373598,111870.0,111840.0,0.03713072]
[1760532084899,0.36373598,111870.0,111840.0,0.03951215]
[1760532085102,0.36373598,111870.0,111840.0,0.05717309]
[1760532085222,0.34706962,111870.0,111840.0,0.05717309]
[1760532087086,0.35540397,111870.0,111840.0,0.05717309]
[1760532087457,0.35540397,111870.0,111840.0,0.03951215]
[1760532088064,0.34706962,111870.0,111840.0,0.03951215]
[1760532088278,0.34706962,111870.0,111840.0,0.18671215]
[1760532088487,0.34706962,111870.0,111840.0,0.18338228]
[1760532088683,0.34706962,111870.0,111850.0,0.00094788]
[1760532089126,0.01,111870.0,111840.0,0.03618228]
[1760532089331,0.01,111870.0,111850.0,0.00018726]
[1760532089526,0.01,111870.0,111850.0,0.00026361]
[1760532091008,0.01,111870.0,111850.0,0.00269245]
[1760532095553,0.01,111870.0,111850.0,0.14989245]
[1760532098296,0.01,111870.0,111850.0,0.17678382]
[1760532098510,0.01,111870.0,111850.0,0.24743347]
[1760532098734,0.01,111870.0,111850.0,0.24474102]
[1760532099347,0.01,111870.0,111850.0,0.21784965]
[1760532099794,0.01,111870.0,111860.0,0.02689028]
[1760532099967,0.01,111870.0,111860.0,0.17409028]
[1760532100476,0.01,111870.0,111860.0,0.19149931]
[1760532101189,0.01,111870.0,111860.0,0.04429931]
[1760532101385,0.01,111870.0,111860.0,0.02689028]
[1760532102248,0.01,111870.0,111840.0,0.52971269]
[1760532102466,0.0643488,111880.0,111860.0,0.76074082]
[1760532102678,0.0643488,111880.0,111870.0,0.38037041]
[1760532102891,0.0643488,111880.0,111860.0,0.49353041]
[1760532103175,0.0643488,111880.0,111870.0,0.00089553]
[1760532103385,0.0643488,111880.0,111870.0,0.02842988]
[1760532104405,0.0643488,111880.0,111870.0,0.02997688]
[1760532104575,0.0643488,111880.0,111870.0,0.41134729]
[1760532104789,0.0643488,111880.0,111870.0,0.40980302]
[1760532105109,0.0643488,111880.0,111870.0,0.4994851]
[1760532106564,0.0643488,111880.0,111870.0,0.53566738]
[1760532106764,0.0643488,111880.0,111870.0,0.64882738]
[1760532107781,0.0643488,111880.0,111870.0,0.64782738]
[1760532107983,0.0643488,111880.0,111870.0,0.64882738]
[1760532108395,0.06493068,111880.0,111870.0,0.64882738]
[1760532109369,0.06493068,111880.0,111870.0,0.26845697]
[1760532109529,0.06493068,111880.0,111870.0,0.5601053]
[1760532110333,0.06493068,111880.0,111870.0,0.4469853]
[1760532110535,0.06493068,111880.0,111870.0,0.5601053]
[1760532110743,0.06493068,111880.0,111870.0,0.17973489]
[1760532110976,0.06493068,111880.0,111870.0,0.5601053]
[1760532111251,0.06493068,111880.0,111870.0,0.64978738]
[1760532111807,0.06493068,111880.0,111870.0,0.26941697]
[1760532112011,0.06493068,111880.0,111870.0,0.5601053]
[1760532112210,0.06493068,111880.0,111870.0,0.4469853]
[1760532112417,0.06493068,111880.0,111870.0,0.06661489]
[1760532113063,0.06493068,111880.0,111870.0,0.17973489]
[1760532113319,0.06493068,111880.0,111870.0,0.17773489]
[1760532113483,0.06493068,111880.0,111870.0,0.23354542]
[1760532113688,0.06493068,111880.0,111870.0,0.23454542]
[1760532113892,0.06493068,111880.0,111870.0,0.12142542]
[1760532114087,0.06493068,111880.0,111870.0,0.23354542]
[1760532114288,0.06493068,111880.0,111870.0,0.12042542]
[1760532114494,0.06493068,111880.0,111870.0,0.12142542]
[1760532114721,0.06493068,111880.0,111870.0,0.23454542]
[1760532114900,0.06493068,111880.0,111870.0,0.23299842]
[1760532115690,0.06493068,111880.0,111870.0,0.11987842]
[1760532116278,0.06493068,111880.0,111870.0,0.12053921]
[1760532116710,0.06493068,111880.0,111870.0,0.23365921]
[1760532116963,0.06493068,111880.0,111870.0,0.11987842]
[1760532117583,0.06493068,111880.0,111870.0,0.23299842]
[1760532117897,0.06493068,111880.0,111870.0,0.11987842]
[1760532118832,0.06493068,111880.0,111870.0,0.02788561]
[1760532119033,0.08493068,111880.0,111870.0,0.001]
[1760532119440,3.03557168,111880.0,111870.0,0.001]
[1760532119643,0.34,111870.0,111860.0,0.02688724]
[1760532119842,0.01,111870.0,111860.0,0.02688724]
[1760532120047,0.35,111870.0,111860.0,0.04088796]
[1760532120181,0.01,111870.0,111860.0,0.02688724]
[1760532120382,0.35,111870.0,111860.0,0.02688724]
[1760532120632,0.01,111870.0,111860.0,0.02688724]
[1760532120845,0.35,111870.0,111860.0,0.02788724]
[1760532121039,0.01,111870.0,111860.0,0.02788724]
[1760532121237,0.35,111870.0,111860.0,0.02788724]
[1760532122212,0.01,111870.0,111860.0,0.02788724]
[1760532122515,0.35,111870.0,111860.0,0.02788724]
[1760532123688,0.01,111870.0,111860.0,0.02788724]
[1760532123863,0.35,111870.0,111860.0,0.02788724]
[1760532124865,0.06338368,111880.0,111860.0,0.02788724]
[1760532125256,2.790641,111870.0,111860.0,0.02788724]
[1760532125455,0.35,111870.0,111860.0,0.02788724]
[1760532125661,0.35,111870.0,111860.0,0.001]
[1760532125869,0.35,111870.0,111850.0,0.02689088]
[1760532125870,2.790641,111860.0,111850.0,0.02689088]
[1760532126115,2.820641,111860.0,111850.0,0.00015024]
[1760532126528,0.37,111860.0,111850.0,0.00015024]
[1760532126883,0.03,111860.0,111850.0,0.00015024]
[1760532128521,2.376875,111880.0,111850.0,0.00015024]
[1760532128737,2.716875,111860.0,111850.0,0.00115024]
[1760532128940,0.43,111860.0,111850.0,0.00115024]
[1760532129133,0.43,111860.0,111850.0,0.00394347]
[1760532129562,0.43,111860.0,111850.0,0.00294347]
[1760532130398,0.473,111860.0,111850.0,0.00015024]
[1760532130611,2.849875,111860.0,111850.0,0.00015024]
[1760532131041,2.806875,111860.0,111850.0,0.00015024]
[1760532131665,2.806875,111860.0,111850.0,0.00115024]
[1760532132284,2.806875,111860.0,111850.0,0.00015024]
[1760532134121,0.43,111860.0,111850.0,0.00015024]
[1760532135403,2.806875,111860.0,111850.0,0.00015024]
[1760532135997,0.43,111860.0,111850.0,0.00015024]
[1760532141072,2.806875,111860.0,111850.0,0.00015024]
[1760532142741,0.43,111860.0,111850.0,0.00015024]
[1760532143999,2.806875,111860.0,111850.0,0.00015024]
[1760532148414,2.376875,111880.0,111850.0,0.00015024]
[1760532148622,2.376875,111870.0,111850.0,0.03633252]
[1760532148872,2.376875,111890.0,111850.0,0.03633252]
[1760532149069,0.1,111880.0,111850.0,0.04265479]
[1760532149281,2.376875,111870.0,111850.0,0.04265479]
[1760532149694,2.376875,111890.0,111850.0,0.04265479]
[1760532149899,2.376875,111880.0,111850.0,0.04265479]
[1760532150103,2.376875,111870.0,111850.0,0.04643148]
[1760532150521,2.376875,111880.0,111850.0,0.04643148]
[1760532150759,2.5152129,111880.0,111850.0,0.04543148]
[1760532150962,2.376875,111870.0,111850.0,0.04543148]
[1760532151179,0.34,111870.0,111850.0,0.04543148]
[1760532151381,2.376875,111860.0,111850.0,0.04543148]
[1760532152234,0.34,111860.0,111850.0,0.04543148]
[1760532152831,0.02729018,111900.0,111850.0,0.04543148]
[1760532153038,2.376875,111890.0,111850.0,0.42421545]
[1760532153503,2.376875,111890.0,111860.0,0.026887]
[1760532153731,0.34,111880.0,111860.0,0.026887]
[1760532154348,0.34,111880.0,111860.0,0.02755521]
[1760532154738,0.34,111880.0,111860.0,0.026887]
[1760532155126,0.03,111880.0,111860.0,0.026887]
[1760532156509,0.18592776,111910.0,111860.0,0.03384118]
[1760532156699,0.14500248,111910.0,111860.0,0.03384118]
[1760532156912,2.376875,111900.0,111860.0,0.03384118]
[1760532157139,2.50520916,111900.0,111860.0,0.03384118]
[1760532157314,2.376875,111890.0,111860.0,0.03384118]
[1760532157520,2.376875,111880.0,111860.0,0.0356343]
[1760532157659,2.376875,111880.0,111860.0,0.03384118]
[1760532157867,0.02,111880.0,111860.0,0.03384118]
[1760532158324,0.02,111880.0,111860.0,0.00695418]
[1760532158788,0.02,111880.0,111850.0,0.04265479]
[1760532158991,2.376875,111870.0,111850.0,0.03633252]
[1760532159164,0.13,111870.0,111850.0,0.03633252]
[1760532159363,0.13,111870.0,111850.0,0.00015024]
[1760532159568,2.376875,111860.0,111850.0,0.00015024]
[1760532159769,2.726875,111860.0,111850.0,0.00015024]
[1760532160154,0.35,111860.0,111850.0,0.00015024]
[1760532160363,0.34,111860.0,111850.0,0.00015024]
[1760532160567,0.34,111860.0,111850.0,0.00115024]
[1760532160983,0.35,111860.0,111850.0,0.00015024]
[1760532161364,0.35,111860.0,111850.0,0.00115024]
[1760532162730,0.34,111860.0,111850.0,0.00115024]
[1760532167707,0.374,111860.0,111850.0,0.00115024]
[1760532167936,2.460875,111860.0,111850.0,0.00115024]
[1760532168684,2.460875,111860.0,111850.0,0.00015024]
[1760532169901,2.426875,111860.0,111850.0,0.00015024]
[1760532172785,2.703685,111860.0,111850.0,0.00015024]
[1760532172997,0.47,111860.0,111850.0,0.00015024]
[1760532173197,2.703685,111860.0,111850.0,0.00015024]
[1760532176122,2.704685,111860.0,111850.0,0.00015024]
[1760532182964,2.703685,111860.0,111850.0,0.00015024]
[1760532185921,2.703685,111860.0,111850.0,0.14735024]
[1760532188670,0.13,111860.0,111850.0,0.00015024]
[1760532188928,0.5,111910.0,111850.0,0.00015024]
[1760532189240,2.233685,111890.0,111850.0,0.00015024]
[1760532189434,2.233685,111870.0,111850.0,0.00015024]
[1760532189717,2.233685,111860.0,111850.0,0.00015024]
[1760532189944,2.273685,111860.0,111850.0,0.00015024]
[1760532194335,2.273685,111860.0,111850.0,0.14735024]
[1760532194823,2.273685,111860.0,111850.0,0.00015024]
[1760532195231,2.273685,111860.0,111850.0,0.14735024]
[1760532196771,2.273685,111860.0,111850.0,0.00015024]
[1760532197806,2.63869507,111860.0,111850.0,0.00015024]
[1760532197957,2.6579044,111860.0,111850.0,0.00015024]
[1760532199188,2.6589044,111860.0,111850.0,0.00015024]
[1760532199806,2.65890087,111860.0,111850.0,0.00015024]
[1760532200220,2.63969507,111860.0,111850.0,0.00015024]
[1760532200429,2.614685,111860.0,111850.0,0.00015024]
[1760532202877,2.426932,111860.0,111850.0,0.00015024]
[1760532207298,2.425932,111860.0,111850.0,0.00015024]
[1760532207716,2.49096508,111860.0,111850.0,0.00015024]
[1760532207855,2.425932,111860.0,111850.0,0.00015024]
[1760532211020,2.045932,111860.0,111850.0,0.00015024]
[1760532211223,2.175932,111860.0,111850.0,0.00015024]
[1760532213187,2.515932,111860.0,111850.0,0.00015024]
[1760532217952,2.54091928,111860.0,111850.0,0.00015024]
[1760532218764,2.5678188,111860.0,111850.0,0.00015024]
[1760532219330,2.58701825,111860.0,111850.0,0.00015024]
[1760532225892,2.56011873,111860.0,111850.0,0.00015024]
[1760532228048,2.58701825,111860.0,111850.0,0.00015024]
[1760532228259,2.56011873,111860.0,111850.0,0.00015024]
[1760532232993,2.54091928,111860.0,111850.0,0.00015024]
[1760532233394,2.56016321,111860.0,111850.0,0.00015024]
[1760532240508,2.57770151,111860.0,111850.0,0.00015024]
[1760532240641,2.58706273,111860.0,111850.0,0.00015024]
[1760532241699,2.56116321,111860.0,111850.0,0.00015024]
[1760532241942,2.54931821,111860.0,111850.0,0.00015024]
[1760532242296,2.53263538,111860.0,111850.0,0.00015024]
[1760532242516,2.54932264,111860.0,111850.0,0.00015024]
[1760532242731,2.55032264,111860.0,111850.0,0.00015024]
[1760532242934,2.57722088,111860.0,111850.0,0.00015024]
[1760532243094,2.57522088,111860.0,111850.0,0.00015024]
[1760532243309,2.57622088,111860.0,111850.0,0.00015024]
[1760532243978,2.57622671,111860.0,111850.0,0.00015024]
[1760532244189,2.57722671,111860.0,111850.0,0.00015024]
[1760532244397,2.57724222,111860.0,111850.0,0.00015024]
[1760532244624,2.20934398,111860.0,111850.0,0.00015024]
[1760532244829,2.165087,111860.0,111850.0,0.00015024]
[1760532245033,2.505087,111860.0,111850.0,0.00015024]
[1760532250903,2.505087,111860.0,111850.0,0.14735024]
[1760532251509,2.54932194,111860.0,111850.0,0.14735024]
[1760532253429,2.34134197,111860.0,111850.0,0.14735024]
[1760532253645,2.33134197,111860.0,111850.0,0.14735024]
[1760532254869,0.001,111860.0,111850.0,0.00015024]
[1760532255053,0.001,111860.0,111850.0,0.00113159]
[1760532255738,1.955322,111880.0,111850.0,0.00113159]
[1760532255984,1.955322,111860.0,111850.0,0.00015024]
[1760532257864,1.955322,111880.0,111850.0,0.00015024]
[1760532258073,0.34,111880.0,111850.0,0.00015024]
[1760532258281,1.955322,111870.0,111850.0,0.00015024]
[1760532258712,0.34,111880.0,111850.0,0.00113148]
[1760532259149,0.011,111880.0,111850.0,0.00113148]
[1760532259548,0.01,111880.0,111850.0,0.00113148]
[1760532259796,0.08,111880.0,111850.0,0.00113148]
[1760532260429,1.955322,111870.0,111850.0,0.00113148]
[1760532260613,1.955322,111890.0,111850.0,0.00113148]
[1760532260816,2.09365005,111890.0,111850.0,0.00113148]
[1760532260960,1.955322,111880.0,111850.0,0.00113148]
[1760532261163,1.955322,111870.0,111850.0,0.00113148]
[1760532261374,1.955322,111890.0,111850.0,0.00113148]
[1760532261575,1.955322,111880.0,111850.0,0.00113148]
[1760532261785,1.955322,111870.0,111850.0,0.00113148]
[1760532261993,1.955322,111890.0,111850.0,0.00113148]
[1760532262207,1.955322,111880.0,111850.0,0.00113148]
[1760532262413,1.955322,111870.0,111850.0,0.03731376]
[1760532262621,1.955322,111880.0,111850.0,0.03731376]
[1760532262857,1.955322,111870.0,111850.0,0.03731376]
[1760532263298,1.955322,111880.0,111850.0,0.03731376]
[1760532263448,1.955322,111880.0,111850.0,0.05090925]
[1760532263656,1.955322,111870.0,111850.0,0.05090925]
[1760532263855,1.955322,111890.0,111850.0,0.05090925]
[1760532264056,1.955322,111880.0,111850.0,0.05090925]
[1760532264278,0.12,111880.0,111850.0,0.05090925]
[1760532264482,1.955322,111870.0,111850.0,0.05090925]
[1760532264851,1.955322,111890.0,111850.0,0.05090925]
[1760532265093,2.075322,111890.0,111850.0,0.05090925]
[1760532265341,1.955322,111880.0,111850.0,0.05090925]
[1760532265530,1.955322,111870.0,111850.0,0.05090925]
[1760532265718,1.955322,111890.0,111850.0,0.05090925]
[1760532265916,0.13,111880.0,111850.0,0.05090925]
[1760532266125,1.955322,111870.0,111850.0,0.03731376]
[1760532266679,1.955322,111870.0,111850.0,0.03779144]
[1760532267696,1.955322,111870.0,111850.0,0.05421361]
[1760532268556,0.02,111870.0,111850.0,0.00015024]
[1760532268802,1.955322,111860.0,111850.0,0.00015024]
[1760532271426,0.00955354,111870.0,111850.0,0.00015024]
[1760532271637,0.36689214,111900.0,111850.0,0.01663309]
[1760532271859,1.955322,111890.0,111850.0,0.04019161]
[1760532272078,1.975322,111890.0,111850.0,0.04019161]
[1760532272300,0.02,111890.0,111850.0,0.04019161]
[1760532272501,0.34,111870.0,111850.0,0.04019161]
[1760532274147,1.955322,111880.0,111850.0,0.04019161]
[1760532274573,1.955322,111870.0,111850.0,0.04019161]
[1760532274780,1.955322,111870.0,111850.0,0.03633252]
[1760532275132,1.955322,111860.0,111850.0,0.03633252]
[1760532275338,0.01,111860.0,111850.0,0.00015024]
[1760532276391,0.01,111860.0,111850.0,0.00115024]
[1760532278065,1.965322,111860.0,111850.0,0.00115024]
[1760532278722,1.965322,111860.0,111850.0,0.00015024]
[1760532281188,2.305322,111860.0,111850.0,0.00015024]
[1760532285832,2.306322,111860.0,111850.0,0.00015024]
[1760532296660,1.966322,111860.0,111850.0,0.00015024]
[1760532296809,0.001,111860.0,111850.0,0.00015024]
[1760532297814,1.955322,111870.0,111850.0,0.00015024]
[1760532298934,1.965322,111870.0,111850.0,0.00015024]
[1760532299145,0.01,111870.0,111850.0,0.00015024]
[1760532305855,0.00923812,111880.0,111850.0,0.14735024]
[1760532306062,0.00923812,111880.0,111860.0,0.01666798]
[1760532306274,2.3222111,111910.0,111860.0,0.01666798]
[1760532306482,1.955322,111880.0,111860.0,0.02196803]
[1760532306686,1.955322,111880.0,111860.0,0.02317954]
[1760532307654,1.955322,111900.0,111860.0,0.02317954]
[1760532307850,1.955322,111880.0,111860.0,0.02317954]
[1760532308672,1.9645923,111880.0,111860.0,0.02317954]
[1760532308895,1.955322,111900.0,111860.0,0.03243675]
[1760532309112,0.001,111900.0,111870.0,0.03618228]
[1760532309326,0.001,111900.0,111880.0,0.01768274]
[1760532309550,0.001,111900.0,111870.0,0.80153985]
[1760532309783,0.001,111900.0,111890.0,0.37618228]
[1760532310438,0.0254,111930.0,111890.0,0.37618228]
[1760532310638,0.0354,111930.0,111900.0,0.01786635]
[1760532310842,0.0354,111930.0,111900.0,0.05727121]
[1760532311021,0.03555024,111930.0,111900.0,0.05727121]
[1760532311963,0.03655024,111930.0,111900.0,0.05727121]
[1760532312170,0.03555024,111930.0,111900.0,0.05727121]
[1760532312409,0.02555024,111930.0,111910.0,0.03618228]
[1760532312625,0.02555024,111930.0,111920.0,0.4342591]
[1760532312840,0.0004,111950.0,111920.0,0.84632301]
[1760532313048,0.0004,111950.0,111940.0,0.75663289]
[1760532313262,0.0004,111950.0,111940.0,0.95916301]
[1760532313473,0.0004,111950.0,111940.0,1.04884509]
[1760532313675,0.0004,111950.0,111940.0,0.93600509]
[1760532313898,0.0004,111950.0,111940.0,0.46586436]
[1760532314111,0.0004,111950.0,111940.0,0.03618228]
[1760532314328,0.0004,111950.0,111940.0,0.001]
[1760532314542,0.0004,111950.0,111940.0,0.002]
[1760532314765,0.3404,111950.0,111940.0,0.002]
[1760532314984,0.3504,111950.0,111940.0,0.001]
[1760532315192,0.3504,111950.0,111920.0,0.05405218]
[1760532315393,0.3504,111950.0,111920.0,0.07344062]
[1760532316048,0.3504,111950.0,111920.0,0.05405218]
[1760532318025,1.955322,111950.0,111920.0,0.39405218]
[1760532318233,1.955322,111950.0,111920.0,0.37618228]
[1760532318436,0.2004,111960.0,111930.0,0.05321877]
[1760532318666,0.20866296,111960.0,111930.0,0.05321877]
[1760532319108,0.00136534,111960.0,111930.0,0.05321877]
[1760532319332,1.955322,111950.0,111930.0,0.05321877]
[1760532319747,1.955322,111960.0,111930.0,0.05321877]
[1760532319972,1.955322,111960.0,111930.0,0.01703649]
[1760532320106,1.955322,111950.0,111920.0,0.05342381]
[1760532320317,0.0040704,111950.0,111920.0,0.07289565]
[1760532320511,1.955322,111960.0,111920.0,0.07289565]
[1760532320712,2.005322,111960.0,111920.0,0.07289565]
[1760532320919,1.955322,111950.0,111920.0,0.07289565]
[1760532321165,0.02,111950.0,111920.0,0.07289565]
[1760532321371,1.955322,111940.0,111920.0,0.07289565]
[1760532321567,1.965322,111940.0,111920.0,0.00015024]
[1760532321710,1.955322,111930.0,111920.0,0.00015024]
[1760532322097,1.955322,111940.0,111920.0,0.00015024]
[1760532322210,2.055322,111940.0,111920.0,0.00015024]
[1760532322414,1.955322,111930.0,111920.0,0.00015024]
[1760532322665,1.955322,111940.0,111920.0,0.00015024]
[1760532322862,1.955322,111930.0,111920.0,0.00015024]
[1760532323266,1.955322,111940.0,111920.0,0.00015024]
[1760532323461,2.045322,111940.0,111920.0,0.00015024]
[1760532323661,1.955322,111930.0,111920.0,0.00015024]
[1760532323861,1.955322,111940.0,111920.0,0.00015024]
[1760532324082,1.955322,111930.0,111920.0,0.00015024]
[1760532324255,1.955322,111940.0,111920.0,0.00015024]
[1760532324453,0.44,111940.0,111920.0,0.00015024]
[1760532324731,0.1,111940.0,111920.0,0.00015024]
[1760532325141,1.955322,111940.0,111920.0,0.00015024]
[1760532325477,0.03675006,111970.0,111920.0,0.00015024]
[1760532325677,0.00290795,111930.0,111920.0,0.01802014]
[1760532325899,0.00290795,111930.0,111920.0,0.07091066]
[1760532326112,0.00290795,111930.0,111920.0,0.00015024]
[1760532327230,0.00290795,111930.0,111920.0,0.01902014]
[1760532327432,0.00290795,111930.0,111920.0,0.01802014]
[1760532327631,0.00290795,111930.0,111920.0,0.00015024]
[1760532327878,0.00290795,111930.0,111920.0,0.00115024]
[1760532330356,0.00290795,111930.0,111920.0,0.00215024]
[1760532330357,2.33478579,111930.0,111920.0,0.00215024]
[1760532330971,2.33478579,111930.0,111920.0,0.00115024]
[1760532331248,2.36213135,111930.0,111920.0,0.00115024]
[1760532331652,2.36213135,111930.0,111920.0,0.00015024]
[1760532331800,2.36313135,111930.0,111920.0,0.00015024]
[1760532332204,2.36213135,111930.0,111920.0,0.00015024]
[1760532332548,2.36313135,111930.0,111920.0,0.00015024]
[1760532333086,2.36413135,111930.0,111920.0,0.00015024]
[1760532334648,2.39101681,111930.0,111920.0,0.00015024]
[1760532335914,2.41503767,111930.0,111920.0,0.00015024]
[1760532336123,2.45906053,111930.0,111920.0,0.00015024]
[1760532336325,0.34,111920.0,111880.0,0.0717521]
[1760532336526,1.955322,111910.0,111880.0,0.0717521]
[1760532336727,0.34,111890.0,111880.0,0.0717521]
[1760532336934,0.36483287,111890.0,111880.0,0.0717521]
[1760532337140,0.36483287,111890.0,111860.0,0.08963159]
[1760532337339,0.36483287,111890.0,111860.0,0.10441298]
[1760532337541,0.37414528,111890.0,111860.0,0.10441298]
[1760532337764,0.03414528,111890.0,111860.0,0.10441298]
[1760532338709,0.03414528,111890.0,111860.0,0.10541298]
[1760532339479,1.955322,111880.0,111860.0,0.002]
[1760532339674,0.00827703,111880.0,111860.0,0.002]
[1760532339875,0.01758944,111890.0,111860.0,0.002]
[1760532340055,1.955322,111880.0,111860.0,0.002]
[1760532340274,0.00830301,111880.0,111860.0,0.001]
[1760532340473,0.01761542,111890.0,111860.0,0.001]
[1760532340693,1.955322,111880.0,111860.0,0.001]
[1760532340874,1.955322,111880.0,111850.0,0.03988109]
[1760532340875,0.00830301,111880.0,111850.0,0.03988109]
[1760532341057,0.34,111890.0,111850.0,0.06248665]
[1760532341281,1.955322,111880.0,111860.0,0.001]
[1760532341482,0.02830301,111880.0,111860.0,0.001]
[1760532341885,0.04489634,111880.0,111860.0,0.001]
[1760532342133,0.04489634,111880.0,111850.0,0.02215024]
[1760532342535,0.04489634,111880.0,111860.0,0.001]
[1760532343295,0.04489634,111880.0,111850.0,0.02215024]
[1760532344555,0.34,111870.0,111850.0,0.02215024]
[1760532345819,0.0717521,111860.0,111850.0,0.02215024]
[1760532346029,2.395322,111860.0,111850.0,0.02215024]
[1760532346240,2.43930599,111860.0,111850.0,0.02215024]
[1760532346499,2.47548827,111860.0,111850.0,0.02215024]
[1760532346714,2.49939118,111860.0,111850.0,0.02215024]
[1760532347339,2.47648827,111860.0,111850.0,0.02215024]
[1760532347544,2.47748827,111860.0,111850.0,0.02215024]
[1760532350309,2.50139118,111860.0,111850.0,0.02215024]
[1760532351084,2.47748827,111860.0,111850.0,0.02215024]
[1760532353010,2.44130599,111860.0,111850.0,0.02215024]
[1760532353231,2.47748827,111860.0,111850.0,0.02215024]
[1760532356742,2.46090549,111860.0,111850.0,0.02215024]
[1760532356970,2.50133136,111860.0,111850.0,0.02215024]
[1760532357535,2.47742845,111860.0,111850.0,0.02215024]
[1760532357764,2.45542845,111860.0,111850.0,0.00015024]
[1760532360187,2.47933136,111860.0,111850.0,0.00015024]
[1760532361320,2.45542845,111860.0,111850.0,0.00015024]
[1760532362601,2.41924617,111860.0,111850.0,0.00015024]
[1760532362854,2.07924617,111860.0,111850.0,0.00015024]
[1760532363363,2.06013635,111860.0,111850.0,0.00015024]
[1760532363567,2.05913635,111860.0,111850.0,0.00015024]
[1760532363772,2.39084496,111860.0,111850.0,0.00015024]
[1760532364214,2.05813046,111860.0,111850.0,0.00015024]
[1760532364424,2.39813164,111860.0,111850.0,0.00015024]
[1760532365286,0.46481352,111860.0,111850.0,0.00015024]
[1760532365624,0.12487384,111860.0,111850.0,0.00015024]
[1760532365852,0.11658328,111860.0,111850.0,0.00015024]
[1760532366223,0.12487822,111860.0,111850.0,0.00015024]
[1760532366639,0.02487822,111860.0,111850.0,0.00015024]
[1760532369916,0.03487822,111860.0,111850.0,0.00015024]
[1760532373901,2.30820022,111860.0,111850.0,0.00015024]
[1760532374104,2.32734189,111860.0,111850.0,0.00015024]
[1760532376399,0.34,111860.0,111850.0,0.00015024]
[1760532376605,0.36,111860.0,111850.0,0.00015024]
[1760532378171,2.087227,111860.0,111850.0,0.00015024]